[Event "Live Chess"]
[Site "Chess.com"]
[Date "2024.06.02"]
[Round "-"]
[White "stevochess11"]
[Black "Ginger_GM"]
[Result "0-1"]
[WhiteElo "1707"]
[BlackElo "2665"]
[TimeControl "300"]
[EndTime "8:24:20 PDT"]
[Termination "Ginger_GM won by resignation"]

1. d4 {[%clk 0:04:55.3]} 1... e6 {[%clk 0:04:57.3]} 2. Nf3 {[%clk 0:04:54]} 2...
f5 {[%clk 0:04:56.2]} 3. Bg5 {[%clk 0:04:52.7]} 3... Be7 {[%clk 0:04:55.1]} 4.
Bxe7 {[%clk 0:04:49.2]} 4... Qxe7 {[%clk 0:04:53.9]} 5. Nbd2 {[%clk 0:04:46.8]}
5... Nf6 {[%clk 0:04:52.6]} 6. g3 {[%clk 0:04:42.7]} 6... d6 {[%clk 0:04:51.5]}
7. Bg2 {[%clk 0:04:41.6]} 7... O-O {[%clk 0:04:51.1]} 8. O-O {[%clk 0:04:40.6]}
8... Nc6 {[%clk 0:04:50.4]} 9. c3 {[%clk 0:04:26.8]} 9... e5 {[%clk 0:04:48.4]}
10. dxe5 {[%clk 0:04:17]} 10... dxe5 {[%clk 0:04:48.3]} 11. Qb3+ {[%clk
0:04:13.9]} 11... Kh8 {[%clk 0:04:46.9]} 12. Ng5 {[%clk 0:04:08.3]} 12... h6
{[%clk 0:04:42.7]} 13. Ngf3 {[%clk 0:04:01.5]} 13... g5 {[%clk 0:04:33.3]} 14.
Nc4 {[%clk 0:03:44.6]} 14... e4 {[%clk 0:04:26.9]} 15. Nd4 {[%clk 0:03:40.5]}
15... Nxd4 {[%clk 0:04:25.2]} 16. cxd4 {[%clk 0:03:38.6]} 16... Be6 {[%clk
0:04:24.9]} 17. Rac1 {[%clk 0:03:30.3]} 17... c6 {[%clk 0:04:21.5]} 18. Qc3
{[%clk 0:03:06.5]} 18... Nd5 {[%clk 0:04:19.4]} 19. Qa5 {[%clk 0:02:55]} 19...
Qb4 {[%clk 0:04:14.2]} 20. Qxb4 {[%clk 0:02:48.5]} 20... Nxb4 {[%clk 0:04:14.1]}
21. a3 {[%clk 0:02:42.7]} 21... Bxc4 {[%clk 0:04:12.9]} 22. Rxc4 {[%clk
0:02:40.2]} 22... Nd5 {[%clk 0:04:11.8]} 23. e3 {[%clk 0:02:24.7]} 23... a5
{[%clk 0:04:06]} 24. Re1 {[%clk 0:02:18.3]} 24... Rfe8 {[%clk 0:03:55.2]} 25. b4
{[%clk 0:02:09.4]} 25... axb4 {[%clk 0:03:53.4]} 26. axb4 {[%clk 0:02:08.3]}
26... Ra4 {[%clk 0:03:50.9]} 27. Rb1 {[%clk 0:02:01.4]} 27... Kg7 {[%clk
0:03:49.4]} 28. Rc5 {[%clk 0:01:45.7]} 28... Rea8 {[%clk 0:03:41.3]} 29. b5
{[%clk 0:01:43.5]} 29... Ra1 {[%clk 0:03:39.7]} 30. Rxa1 {[%clk 0:01:39.6]}
30... Rxa1+ {[%clk 0:03:39.6]} 31. Bf1 {[%clk 0:01:38.8]} 31... f4 {[%clk
0:03:14.7]} 32. gxf4 {[%clk 0:01:30.2]} 32... gxf4 {[%clk 0:03:12.1]} 33. exf4
{[%clk 0:01:28.9]} 33... e3 {[%clk 0:03:08.4]} 34. fxe3 {[%clk 0:01:07.6]} 34...
Nxe3 {[%clk 0:03:06.7]} 35. h4 {[%clk 0:00:57.7]} 35... Rxf1+ {[%clk 0:03:04.8]}
36. Kh2 {[%clk 0:00:56.6]} 36... Rxf4 {[%clk 0:03:02.8]} 37. Kg3 {[%clk
0:00:54.1]} 37... Rxd4 {[%clk 0:03:00.2]} 38. bxc6 {[%clk 0:00:52.8]} 38... bxc6
{[%clk 0:02:59.5]} 39. Rxc6 {[%clk 0:00:51.6]} 39... Nf5+ {[%clk 0:02:58.6]} 40.
Kh3 {[%clk 0:00:47.7]} 40... Rxh4+ {[%clk 0:02:57.7]} 41. Kg2 {[%clk 0:00:46.9]}
41... Rg4+ {[%clk 0:02:53.9]} 42. Kh3 {[%clk 0:00:45.9]} 42... Rg3+ {[%clk
0:02:51.7]} 43. Kh2 {[%clk 0:00:45]} 43... Rg6 {[%clk 0:02:50.6]} 44. Rc7+
{[%clk 0:00:43.6]} 44... Kf6 {[%clk 0:02:49.8]} 45. Rc6+ {[%clk 0:00:41.6]}
45... Kg5 {[%clk 0:02:48.9]} 46. Rc1 {[%clk 0:00:39.6]} 46... Kh4 {[%clk
0:02:47.8]} 47. Rc4+ {[%clk 0:00:37.9]} 47... Rg4 {[%clk 0:02:46.9]} 48. Rc3
{[%clk 0:00:34.7]} 48... h5 {[%clk 0:02:45.4]} 49. Rd3 {[%clk 0:00:32.1]} 49...
Kg5 {[%clk 0:02:44.2]} 50. Kh3 {[%clk 0:00:29.5]} 50... h4 {[%clk 0:02:42.6]}
51. Rf3 {[%clk 0:00:27.8]} 51... Rg3+ {[%clk 0:02:41.6]} 52. Rxg3+ {[%clk
0:00:26.5]} 52... hxg3 {[%clk 0:02:40.7]} 53. Kg2 {[%clk 0:00:25.6]} 53... Kg4
{[%clk 0:02:40.6]} 54. Kh1 {[%clk 0:00:24.7]} 54... Kf3 {[%clk 0:02:40.5]} 55.
Kg1 {[%clk 0:00:23.9]} 55... g2 {[%clk 0:02:39.1]} 56. Kh2 {[%clk 0:00:22.4]}
56... Kf2 {[%clk 0:02:39]} 0-1

[Event "Live Chess"]
[Site "Chess.com"]
[Date "2024.06.02"]
[Round "-"]
[White "ProfPoisson"]
[Black "bonantagulo"]
[Result "0-1"]
[WhiteElo "1352"]
[BlackElo "2233"]
[TimeControl "300"]
[EndTime "8:24:27 PDT"]
[Termination "bonantagulo won by checkmate"]

1. e4 {[%clk 0:04:48]} 1... c5 {[%clk 0:04:57.9]} 2. Nc3 {[%clk 0:04:44.2]} 2...
e6 {[%clk 0:04:54.6]} 3. f4 {[%clk 0:04:42.2]} 3... Nc6 {[%clk 0:04:52.7]} 4.
Nf3 {[%clk 0:04:38.4]} 4... Nge7 {[%clk 0:03:56.9]} 5. Bb5 {[%clk 0:04:28.7]}
5... a6 {[%clk 0:03:55.8]} 6. Bxc6 {[%clk 0:04:27.1]} 6... Nxc6 {[%clk
0:03:55.7]} 7. O-O {[%clk 0:04:24]} 7... d5 {[%clk 0:03:55.2]} 8. d3 {[%clk
0:04:19.1]} 8... Be7 {[%clk 0:03:52.6]} 9. Qe1 {[%clk 0:04:14.3]} 9... O-O
{[%clk 0:03:50.6]} 10. Ng5 {[%clk 0:03:54.5]} 10... dxe4 {[%clk 0:03:46.2]} 11.
Qh4 {[%clk 0:03:51.7]} 11... h6 {[%clk 0:03:45.1]} 12. dxe4 {[%clk 0:03:40.7]}
12... Nd4 {[%clk 0:03:34.1]} 13. Be3 {[%clk 0:02:54.5]} 13... Nxc2 {[%clk
0:03:20.8]} 14. Qg3 {[%clk 0:02:42.6]} 14... Nxa1 {[%clk 0:03:12.2]} 15. Rxa1
{[%clk 0:02:40.7]} 15... hxg5 {[%clk 0:03:10.8]} 16. fxg5 {[%clk 0:02:39.3]}
16... e5 {[%clk 0:02:48.3]} 17. Rf1 {[%clk 0:02:38.2]} 17... Be6 {[%clk
0:02:35.8]} 18. Rd1 {[%clk 0:02:22.6]} 18... Qc7 {[%clk 0:02:23.5]} 19. h4
{[%clk 0:02:12.8]} 19... Rad8 {[%clk 0:02:18.4]} 20. Rf1 {[%clk 0:02:07.7]}
20... Rd3 {[%clk 0:02:11.8]} 21. h5 {[%clk 0:01:59]} 21... c4 {[%clk 0:02:07.6]}
22. g6 {[%clk 0:01:40.2]} 22... Rxe3 {[%clk 0:02:04.2]} 23. gxf7+ {[%clk
0:01:31.3]} 23... Rxf7 {[%clk 0:02:02.9]} 24. Qg6 {[%clk 0:01:26.3]} 24... Bc5
{[%clk 0:01:49.5]} 25. Kh2 {[%clk 0:01:18.4]} 25... Rxf1 {[%clk 0:01:45.3]} 26.
Qe8+ {[%clk 0:01:13.6]} 26... Rf8 {[%clk 0:01:38.5]} 27. Qxe6+ {[%clk
0:01:11.6]} 27... Qf7 {[%clk 0:01:37.9]} 28. Qxe5 {[%clk 0:01:03.6]} 28... Re8
{[%clk 0:01:26.3]} 29. Qxc5 {[%clk 0:01:01.5]} 29... Qf4+ {[%clk 0:01:22.3]} 30.
Kg1 {[%clk 0:00:53.3]} 30... Re1# {[%clk 0:01:21.4]} 0-1

[Event "Live Chess"]
[Site "Chess.com"]
[Date "2024.06.02"]
[Round "-"]
[White "FREDERICKtheMATE"]
[Black "matt1979"]
[Result "1-0"]
[WhiteElo "2662"]
[BlackElo "1400"]
[TimeControl "300"]
[EndTime "8:24:32 PDT"]
[Termination "FREDERICKtheMATE won by resignation"]

1. c4 {[%clk 0:04:57.1]} 1... f5 {[%clk 0:04:56.9]} 2. d4 {[%clk 0:04:55.4]}
2... e6 {[%clk 0:04:56]} 3. Nf3 {[%clk 0:04:54.2]} 3... Nf6 {[%clk 0:04:55.2]}
4. g3 {[%clk 0:04:53.8]} 4... Bb4+ {[%clk 0:04:53.8]} 5. Bd2 {[%clk 0:04:52.5]}
5... Bxd2+ {[%clk 0:04:51.7]} 6. Nfxd2 {[%clk 0:04:51.4]} 6... b6 {[%clk
0:04:49.4]} 7. Bg2 {[%clk 0:04:50.4]} 7... Nc6 {[%clk 0:04:47.1]} 8. O-O {[%clk
0:04:48.8]} 8... Bb7 {[%clk 0:04:46.4]} 9. Nc3 {[%clk 0:04:47.3]} 9... Na5
{[%clk 0:04:40.9]} 10. Bxb7 {[%clk 0:04:43.7]} 10... Nxb7 {[%clk 0:04:40.1]} 11.
e4 {[%clk 0:04:43.4]} 11... fxe4 {[%clk 0:04:38.5]} 12. Ndxe4 {[%clk 0:04:42.8]}
12... O-O {[%clk 0:04:36.1]} 13. d5 {[%clk 0:04:39.3]} 13... e5 {[%clk
0:04:24.6]} 14. d6 {[%clk 0:04:31.1]} 14... c6 {[%clk 0:04:15.6]} 15. b4 {[%clk
0:04:28.8]} 15... Nxe4 {[%clk 0:04:10.1]} 16. Nxe4 {[%clk 0:04:27.8]} 16... Qe8
{[%clk 0:04:03.2]} 17. Qg4 {[%clk 0:04:19.8]} 17... h6 {[%clk 0:03:57.2]} 18.
Rae1 {[%clk 0:04:11.2]} 18... Nd8 {[%clk 0:03:44.2]} 19. f4 {[%clk 0:04:06.6]}
19... Nf7 {[%clk 0:03:28.6]} 20. Nf6+ {[%clk 0:04:02.5]} 1-0

[Event "Live Chess"]
[Site "Chess.com"]
[Date "2024.06.02"]
[Round "-"]
[White "ukraineZelensky"]
[Black "kylet1990"]
[Result "1-0"]
[WhiteElo "1323"]
[BlackElo "781"]
[TimeControl "300"]
[EndTime "8:24:48 PDT"]
[Termination "ukraineZelensky won by resignation"]

1. d4 {[%clk 0:04:56.7]} 1... c6 {[%clk 0:04:58.8]} 2. e4 {[%clk 0:04:54.4]}
2... d5 {[%clk 0:04:57.9]} 3. e5 {[%clk 0:04:52.3]} 3... Bf5 {[%clk 0:04:56.9]}
4. c3 {[%clk 0:04:50.9]} 4... e6 {[%clk 0:04:54.5]} 5. Nf3 {[%clk 0:04:48.8]}
5... g6 {[%clk 0:04:51.1]} 6. Bd3 {[%clk 0:04:46.3]} 6... Bh6 {[%clk 0:04:49]}
7. Bxf5 {[%clk 0:04:40.6]} 7... exf5 {[%clk 0:04:47.3]} 8. Bxh6 {[%clk
0:04:35.5]} 8... Nxh6 {[%clk 0:04:45.5]} 9. Qd2 {[%clk 0:04:27.1]} 9... O-O
{[%clk 0:04:43.3]} 10. Qxh6 {[%clk 0:04:24.4]} 10... Qb6 {[%clk 0:04:40]} 11.
Ng5 {[%clk 0:04:19.6]} 1-0

[Event "Live Chess"]
[Site "Chess.com"]
[Date "2024.06.02"]
[Round "-"]
[White "FlyingChessKestrel13"]
[Black "f4nomore"]
[Result "1-0"]
[WhiteElo "2075"]
[BlackElo "1284"]
[TimeControl "300"]
[EndTime "8:24:49 PDT"]
[Termination "FlyingChessKestrel13 won by checkmate"]

1. e4 {[%clk 0:04:58.6]} 1... g6 {[%clk 0:04:58.2]} 2. d4 {[%clk 0:04:57.2]}
2... Bg7 {[%clk 0:04:57.2]} 3. Nc3 {[%clk 0:04:55.5]} 3... d6 {[%clk 0:04:56.4]}
4. Nge2 {[%clk 0:04:54.2]} 4... a6 {[%clk 0:04:55.4]} 5. g3 {[%clk 0:04:53.1]}
5... Nd7 {[%clk 0:04:54.1]} 6. Bg2 {[%clk 0:04:52.7]} 6... Ngf6 {[%clk
0:04:52.3]} 7. O-O {[%clk 0:04:51.9]} 7... O-O {[%clk 0:04:50.6]} 8. Kh1 {[%clk
0:04:49.1]} 8... c5 {[%clk 0:04:49.5]} 9. d5 {[%clk 0:04:48.1]} 9... Nb6 {[%clk
0:04:43.2]} 10. Bg5 {[%clk 0:04:45.9]} 10... Ng4 {[%clk 0:04:32.1]} 11. h3
{[%clk 0:04:37.2]} 11... Ne5 {[%clk 0:04:28.4]} 12. f4 {[%clk 0:04:36.5]} 12...
Nec4 {[%clk 0:04:17.2]} 13. Qc1 {[%clk 0:04:33.3]} 13... Qe8 {[%clk 0:04:11.7]}
14. a4 {[%clk 0:04:30.3]} 14... f6 {[%clk 0:03:58]} 15. Bh4 {[%clk 0:04:26.6]}
15... e6 {[%clk 0:03:54.5]} 16. a5 {[%clk 0:04:24.4]} 16... Nd7 {[%clk
0:03:41.7]} 17. e5 {[%clk 0:04:22.6]} 17... dxe5 {[%clk 0:03:36.6]} 18. dxe6
{[%clk 0:04:21.7]} 18... exf4 {[%clk 0:03:26.3]} 19. exd7 {[%clk 0:04:16.2]}
19... Bxd7 {[%clk 0:03:23.6]} 20. Bd5+ {[%clk 0:04:14.5]} 20... Kh8 {[%clk
0:03:22]} 21. Bxc4 {[%clk 0:04:13.5]} 21... fxg3 {[%clk 0:03:16.3]} 22. Bxg3
{[%clk 0:04:11.8]} 22... Bc6+ {[%clk 0:03:12.5]} 23. Kh2 {[%clk 0:04:09.9]}
23... Qe7 {[%clk 0:02:38.2]} 24. Qf4 {[%clk 0:04:05.3]} 24... Rfe8 {[%clk
0:02:30.9]} 25. Rad1 {[%clk 0:04:00.6]} 25... f5 {[%clk 0:02:16.3]} 26. Qd6
{[%clk 0:03:41.4]} 26... Qe3 {[%clk 0:02:01.9]} 27. Bf4 {[%clk 0:03:34.1]} 27...
Qxe2+ {[%clk 0:01:31.9]} 28. Nxe2 {[%clk 0:03:31.2]} 28... Rxe2+ {[%clk
0:01:25.5]} 29. Bxe2 {[%clk 0:03:29.4]} 29... Re8 {[%clk 0:01:23.9]} 30. Bc4
{[%clk 0:03:24.7]} 30... g5 {[%clk 0:01:18.8]} 31. Bxg5 {[%clk 0:03:21.9]} 31...
Be5+ {[%clk 0:01:14.8]} 32. Qxe5+ {[%clk 0:03:17.7]} 32... Rxe5 {[%clk
0:01:11.3]} 33. Bf6# {[%clk 0:03:16.8]} 1-0

[Event "Live Chess"]
[Site "Chess.com"]
[Date "2024.06.02"]
[Round "-"]
[White "GEMdzq"]
[Black "DarranAS"]
[Result "1-0"]
[WhiteElo "2273"]
[BlackElo "1416"]
[TimeControl "300"]
[EndTime "8:24:54 PDT"]
[Termination "GEMdzq won by resignation"]

1. e4 {[%clk 0:04:57.6]} 1... c5 {[%clk 0:04:58.4]} 2. d4 {[%clk 0:04:56.5]}
2... cxd4 {[%clk 0:04:56.4]} 3. c3 {[%clk 0:04:56.1]} 3... dxc3 {[%clk
0:04:52.4]} 4. Nxc3 {[%clk 0:04:56]} 4... e6 {[%clk 0:04:45.2]} 5. Bc4 {[%clk
0:04:54.1]} 5... Nc6 {[%clk 0:04:42.1]} 6. Nf3 {[%clk 0:04:53.6]} 6... Be7
{[%clk 0:04:38.7]} 7. O-O {[%clk 0:04:52.7]} 7... d6 {[%clk 0:04:35.8]} 8. Qe2
{[%clk 0:04:51.6]} 8... Bd7 {[%clk 0:04:34.4]} 9. Rd1 {[%clk 0:04:50.9]} 9... a6
{[%clk 0:04:29.6]} 10. Bf4 {[%clk 0:04:50.4]} 10... Qc7 {[%clk 0:04:22.3]} 11.
e5 {[%clk 0:04:49.3]} 11... dxe5 {[%clk 0:04:10.6]} 12. Nxe5 {[%clk 0:04:48.1]}
12... Nxe5 {[%clk 0:04:08]} 13. Bxe5 {[%clk 0:04:46.9]} 13... Qc6 {[%clk
0:03:57.9]} 14. Bxg7 {[%clk 0:04:43.7]} 14... Bf6 {[%clk 0:03:56.3]} 15. Bxh8
{[%clk 0:04:42.5]} 15... Bxh8 {[%clk 0:03:54.8]} 16. Bd5 {[%clk 0:04:41.3]}
16... Qb6 {[%clk 0:03:31.5]} 17. Bf3 {[%clk 0:04:29.1]} 17... Bxc3 {[%clk
0:03:22]} 18. bxc3 {[%clk 0:04:27.9]} 18... Rc8 {[%clk 0:03:21.6]} 19. Rab1
{[%clk 0:04:21.7]} 19... Bb5 {[%clk 0:02:57.3]} 20. c4 {[%clk 0:04:20.6]} 20...
Rxc4 {[%clk 0:02:48.1]} 21. Qxc4 {[%clk 0:04:19.5]} 21... Bxc4 {[%clk
0:02:45.5]} 22. Rxb6 {[%clk 0:04:19.4]} 22... Bd5 {[%clk 0:02:36.5]} 23. Bxd5
{[%clk 0:04:17.6]} 23... exd5 {[%clk 0:02:35.3]} 24. Rxd5 {[%clk 0:04:17.3]}
24... Ne7 {[%clk 0:02:34.5]} 25. Re5 {[%clk 0:04:15.7]} 25... Kd7 {[%clk
0:02:31.6]} 26. Rxb7+ {[%clk 0:04:14.8]} 1-0

[Event "Live Chess"]
[Site "Chess.com"]
[Date "2024.06.02"]
[Round "-"]
[White "goldinspiredphoenix"]
[Black "Queensandpawns"]
[Result "0-1"]
[WhiteElo "1477"]
[BlackElo "2245"]
[TimeControl "300"]
[EndTime "8:25:08 PDT"]
[Termination "Queensandpawns won by checkmate"]

1. d4 {[%clk 0:04:50.9]} 1... e5 {[%clk 0:04:59.9]} 2. dxe5 {[%clk 0:04:48.7]}
2... Nc6 {[%clk 0:04:58.9]} 3. Nf3 {[%clk 0:04:47.1]} 3... Qe7 {[%clk 0:04:58]}
4. Nc3 {[%clk 0:04:44]} 4... Nxe5 {[%clk 0:04:56.3]} 5. Nxe5 {[%clk 0:04:42.8]}
5... Qxe5 {[%clk 0:04:56.2]} 6. e4 {[%clk 0:04:41]} 6... c6 {[%clk 0:04:52.5]}
7. Be3 {[%clk 0:04:36.9]} 7... Nf6 {[%clk 0:04:51]} 8. Bd3 {[%clk 0:04:33.7]}
8... Bb4 {[%clk 0:04:49.1]} 9. Qd2 {[%clk 0:04:24.9]} 9... O-O {[%clk
0:04:44.6]} 10. O-O {[%clk 0:04:21.5]} 10... d5 {[%clk 0:04:41.3]} 11. exd5
{[%clk 0:04:17]} 11... Nxd5 {[%clk 0:04:41.2]} 12. a3 {[%clk 0:04:04.5]} 12...
Bxc3 {[%clk 0:04:36.9]} 13. bxc3 {[%clk 0:04:02]} 13... Qxc3 {[%clk 0:04:36.8]}
14. Qxc3 {[%clk 0:04:00]} 14... Nxc3 {[%clk 0:04:36.7]} 15. Bc5 {[%clk
0:03:57.7]} 15... Re8 {[%clk 0:04:34.1]} 16. Rfe1 {[%clk 0:03:53.9]} 16... Be6
{[%clk 0:04:33]} 17. f3 {[%clk 0:03:46.8]} 17... b6 {[%clk 0:04:29.6]} 18. Bb4
{[%clk 0:03:37.1]} 18... Nd5 {[%clk 0:04:27.7]} 19. Bd2 {[%clk 0:03:28.9]} 19...
Rad8 {[%clk 0:04:25.5]} 20. Kf2 {[%clk 0:03:12.5]} 20... c5 {[%clk 0:04:21.5]}
21. Bb5 {[%clk 0:03:09.3]} 21... Re7 {[%clk 0:04:19.1]} 22. Bg5 {[%clk 0:03:03]}
22... f6 {[%clk 0:04:16.2]} 23. Bh4 {[%clk 0:03:00.3]} 23... Kf7 {[%clk
0:04:16.1]} 24. Bg3 {[%clk 0:02:59]} 24... Nc3 {[%clk 0:04:14.4]} 25. Bd3 {[%clk
0:02:33.8]} 25... c4 {[%clk 0:04:11.8]} 26. Bf1 {[%clk 0:02:27.2]} 26... Rd2+
{[%clk 0:04:10.3]} 27. Be2 {[%clk 0:02:23.2]} 27... Bf5 {[%clk 0:04:08.8]} 28.
Rad1 {[%clk 0:02:10.6]} 28... Rexe2+ {[%clk 0:04:06.2]} 29. Rxe2 {[%clk
0:02:09.2]} 29... Nxd1+ {[%clk 0:04:04.4]} 30. Ke1 {[%clk 0:02:06.7]} 30...
Rxe2+ {[%clk 0:04:04.1]} 31. Kxe2 {[%clk 0:02:05.5]} 31... Bxc2 {[%clk 0:04:04]}
32. Kd2 {[%clk 0:02:04]} 32... Bb3 {[%clk 0:04:02.9]} 33. Bd6 {[%clk 0:01:59.8]}
33... Nb2 {[%clk 0:04:00.8]} 34. Kc3 {[%clk 0:01:57.5]} 34... Nd3 {[%clk
0:03:59.4]} 35. Kd2 {[%clk 0:01:55.8]} 35... Nc5 {[%clk 0:03:57.2]} 36. Bxc5
{[%clk 0:01:53.5]} 36... bxc5 {[%clk 0:03:56.2]} 37. Kc3 {[%clk 0:01:52.1]}
37... Ke6 {[%clk 0:03:56.1]} 38. g3 {[%clk 0:01:49.8]} 38... Kd5 {[%clk
0:03:56]} 39. f4 {[%clk 0:01:49.2]} 39... f5 {[%clk 0:03:54.8]} 40. h3 {[%clk
0:01:36.8]} 40... h5 {[%clk 0:03:50.2]} 41. h4 {[%clk 0:01:35]} 41... g6 {[%clk
0:03:47.9]} 42. Kb2 {[%clk 0:01:33]} 42... Kd4 {[%clk 0:03:47]} 43. Kc1 {[%clk
0:01:31.3]} 43... Kc3 {[%clk 0:03:45.2]} 44. Kb1 {[%clk 0:01:21.6]} 44... Kd2
{[%clk 0:03:44.7]} 45. Kb2 {[%clk 0:01:20.1]} 45... c3+ {[%clk 0:03:42.2]} 46.
Kxb3 {[%clk 0:01:19.7]} 46... c2 {[%clk 0:03:42.1]} 47. Kb2 {[%clk 0:01:19.1]}
47... c1=Q+ {[%clk 0:03:41.7]} 48. Kb3 {[%clk 0:01:19]} 48... c4+ {[%clk
0:03:40.5]} 49. Kb4 {[%clk 0:01:18.2]} 49... c3 {[%clk 0:03:40.4]} 50. Kb5
{[%clk 0:01:16.6]} 50... c2 {[%clk 0:03:40.3]} 51. Kb4 {[%clk 0:01:16.2]} 51...
Qb1+ {[%clk 0:03:40.2]} 52. Ka5 {[%clk 0:01:13.8]} 52... c1=Q {[%clk 0:03:40.1]}
53. Ka4 {[%clk 0:01:12.9]} 53... Qc6+ {[%clk 0:03:39.1]} 54. Ka5 {[%clk
0:01:11.6]} 54... Qcb6+ {[%clk 0:03:39]} 55. Ka4 {[%clk 0:01:10.8]} 55... Q1b5#
{[%clk 0:03:38.9]} 0-1

[Event "Live Chess"]
[Site "Chess.com"]
[Date "2024.06.02"]
[Round "-"]
[White "Pablo_dmp"]
[Black "GwaryTek"]
[Result "1-0"]
[WhiteElo "1985"]
[BlackElo "1882"]
[TimeControl "300"]
[EndTime "8:25:11 PDT"]
[Termination "Pablo_dmp won on time"]

1. e4 {[%clk 0:04:59.4]} 1... Nf6 {[%clk 0:04:58.6]} 2. e5 {[%clk 0:04:58.5]}
2... Nd5 {[%clk 0:04:57.2]} 3. d4 {[%clk 0:04:58.4]} 3... d6 {[%clk 0:04:56.2]}
4. Nf3 {[%clk 0:04:58.3]} 4... Bg4 {[%clk 0:04:53.5]} 5. Be2 {[%clk 0:04:50.5]}
5... e6 {[%clk 0:04:50.5]} 6. h3 {[%clk 0:04:41.9]} 6... Bh5 {[%clk 0:04:45.3]}
7. c4 {[%clk 0:04:39.4]} 7... Nb6 {[%clk 0:04:43.8]} 8. Nc3 {[%clk 0:04:35]}
8... Nc6 {[%clk 0:04:41.1]} 9. Bf4 {[%clk 0:04:30.8]} 9... Be7 {[%clk 0:04:39]}
10. exd6 {[%clk 0:04:24.5]} 10... cxd6 {[%clk 0:04:38.9]} 11. O-O {[%clk
0:04:17.2]} 11... O-O {[%clk 0:04:36.8]} 12. Rc1 {[%clk 0:04:14.4]} 12... Bxf3
{[%clk 0:04:11]} 13. Bxf3 {[%clk 0:04:07.6]} 13... Nxc4 {[%clk 0:04:09.3]} 14.
Qd3 {[%clk 0:04:04.2]} 14... d5 {[%clk 0:03:24]} 15. b3 {[%clk 0:03:52]} 15...
Nb6 {[%clk 0:02:42.8]} 16. Rfe1 {[%clk 0:03:41.8]} 16... Bf6 {[%clk 0:02:16.8]}
17. Nb5 {[%clk 0:03:36.7]} 17... Rc8 {[%clk 0:02:13.7]} 18. Nd6 {[%clk
0:03:25.7]} 18... Rc7 {[%clk 0:02:10.9]} 19. Nxb7 {[%clk 0:03:19.9]} 19... Rxb7
{[%clk 0:01:56.1]} 20. Rxc6 {[%clk 0:03:10.9]} 20... Qd7 {[%clk 0:01:37.3]} 21.
Rec1 {[%clk 0:03:03.8]} 21... Rc8 {[%clk 0:01:35.5]} 22. Qc2 {[%clk 0:02:55.7]}
22... Rxc6 {[%clk 0:01:25.7]} 23. Qxc6 {[%clk 0:02:52.8]} 23... Qxc6 {[%clk
0:01:16.9]} 24. Rxc6 {[%clk 0:02:52.7]} 24... Bxd4 {[%clk 0:01:12.3]} 25. a4
{[%clk 0:02:47.2]} 25... h6 {[%clk 0:00:49]} 26. Be2 {[%clk 0:02:42]} 26... Nd7
{[%clk 0:00:35.2]} 27. Bd3 {[%clk 0:02:36.3]} 27... e5 {[%clk 0:00:11.3]} 28.
Rc8+ {[%clk 0:02:29.7]} 28... Nf8 {[%clk 0:00:10.4]} 29. Bc1 {[%clk 0:02:23.5]}
29... Rxb3 {[%clk 0:00:09.3]} 30. Bc2 {[%clk 0:02:16.1]} 30... Rb7 {[%clk
0:00:06.9]} 31. Ba3 {[%clk 0:02:11.3]} 31... g6 {[%clk 0:00:04.2]} 32. Bxf8
{[%clk 0:02:07.7]} 32... Kh7 {[%clk 0:00:02.4]} 33. Bd6 {[%clk 0:01:55]} 33...
Rb2 {[%clk 0:00:00.8]} 34. Bd3 {[%clk 0:01:51.2]} 1-0